Cogmind - Beta 11.2 @@@ ROGUE MODE // 2023.01.20 @ 19:10:11 Player: Blaj Result: Destroyed by S-27 Virus with Autogun Performance ------------- Evolutions (3) 1500 Regions Visited (15) 3000 Robots Destroyed (231) 1155 Value Destroyed (7155) 7155 Prototype IDs (46) 920 Alien Tech Used (0) 0 Bonus (2532) 2532 TOTAL SCORE: 16262 Bonus ------- High Alert Combat Kills 659 Follower Combat Kills 185 Destroyed Z-Imprinter 1000 Triggered Deep Caves Wall 500 Exposed GOLEM Chamber 500 Friendly Fire -312 Cogmind --------- Core Integrity 0/700 Matter 280/300 Energy 744/1100 System Corruption 0% Temperature Cool (0) Movement Walking (180) Ox1 Location -6/Proximity Caves Parts ------- > --- POWER (1) -------- (None) > --- PROPULSION (3) --- Assembled Alloy Leg Assembled Alloy Leg > --- UTILITY (7) ------ Assembled Nanovents Huge Storage Unit Assembled Biocell Array Experimental Sensor Array Assembled Alloy Armor GOLEM Unit > --- WEAPON (2) ------- Assembled Focal Cannon Mini Grenade Launcher > --- INVENTORY (25) --- Zionite Composite Leg I Zionite Biocell (600) Weapon Cycler Transmission Jammer Zionite Weapon Casing Hardened Heavy Armor Plating Hardened Heavy Armor Plating Trap Extractor (4/4 Dirty Bomb) Improved Trap Extractor (0/6) Splice Drone Bay (5/6) Hacking Drone Bay (1/1) GOLEM Unit PSU Rigger Precision Shock Rifle Cooled Particle Cannon Improved Datajack Plasma Cutter CR-A16's Pointy Stick Peak State ------------ > --- POWER ------------ Reinforced Fission Core > --- PROPULSION ------- Zionite Composite Leg I Assembled Alloy Leg Assembled Alloy Leg > --- UTILITY ---------- Assembled Nanovents Assembled Nanovents Huge Storage Unit Assembled Biocell Array Assembled Alloy Armor GOLEM Unit > --- WEAPON ----------- Zionite Laser-S Zionite Phaser-S > --- INVENTORY -------- Hybrid Deuterium Engine Improved Cooling System Zionite Biocell Experimental Sensor Array Weapon Cycler Transmission Jammer Zionite Weapon Casing Hardened Heavy Armor Plating Hardened Heavy Armor Plating Trap Extractor Improved Trap Extractor Splice Drone Bay Hacking Drone Bay GOLEM Unit PSU Rigger Precision Shock Rifle Zionite Laser-S Cooled Particle Cannon Mini Grenade Launcher Improved Datajack Plasma Cutter CR-A16's Pointy Stick [Rating: 107] Favorites ----------- Power Reinforced Fission Core Engine Cooled Ion Engine Power Core Reinforced Fission Core Reactor Cold Fusion Reactor Propulsion Armored Huge Wheel Leg Assembled Alloy Leg Wheel Armored Huge Wheel Utility Huge Storage Unit Device Experimental Sensor Array Storage Huge Storage Unit Processor Improved Signal Interpreter Hackware Hacking Suite Protection Hardened Heavy Armor Plating Weapon Minigun Energy Gun EM Pulse Gun Energy Cannon Light EM Pulse Cannon Ballistic Gun Minigun Ballistic Cannon Improved Light Cannon Launcher Mini Grenade Launcher Special Weapon Plasma Cutter Impact Weapon Great Maul Special Melee Weapon Improved Datajack Build | -11 -10 -10 -9 -9 -9 -8 -8 -7 -7 -7 -7 -7 -7 -7 -6 ------- Run | Scr Mat Min Mat Min Exi Min Mat Fac Was Fac Low Low Zio Dee Pro Slots Evolved 6 | . . . 2 . . . 2 2 . . . . . . . Power . | . . . . . . . . . . . . . . . . Propulsion 1 | . . . . . . . 1 . . . . . . . . Utility 5 | . . . 2 . . . 1 2 . . . . . . . Weapon . | . . . . . . . . . . . . . . . . Parts Attached 351 | 9 10 12 28 2 20 2 51 21 1 92 17 17 13 53 3 Power 19 | 1 1 . 1 . 3 1 2 1 . 1 . 2 . 6 . Engine 9 | 1 1 . 1 . 3 . . 1 . . . 1 . 1 . Core 6 | . . . . . . . 1 . . 1 . 1 . 3 . Reactor 4 | . . . . . . 1 1 . . . . . . 2 . Propulsion 25 | 2 2 . 3 . 1 . 6 1 . 5 1 . 1 3 . Treads . | . . . . . . . . . . . . . . . . Leg 1 | . . . . . . . . . . . . . . 1 . Wheel 24 | 2 2 . 3 . 1 . 6 1 . 5 1 . 1 2 . Hover . | . . . . . . . . . . . . . . . . Flight . | . . . . . . . . . . . . . . . . Utility 173 | 2 3 4 12 . 11 . 29 15 . 40 8 9 7 32 1 Device 112 | 1 . 3 5 . 5 . 12 13 . 32 7 8 4 21 1 Storage 7 | 1 3 . . . 1 . . . . 1 . . . 1 . Processor 9 | . . . 2 . . . 4 1 . 1 1 . . . . Hackware 6 | . . . . . . . 5 1 . . . . . . . Protection 39 | . . 1 5 . 5 . 8 . . 6 . 1 3 10 . Artifact . | . . . . . . . . . . . . . . . . Weapon 134 | 4 4 8 12 2 5 1 14 4 1 46 8 6 5 12 2 Energy Gun 17 | 2 3 . 1 . . . 1 2 . 3 . . . 5 . Energy Cannon 9 | . . . 1 . . . . . . 1 2 2 1 2 . Ballistic Gun 26 | 2 . . 2 1 3 1 3 1 . 10 . . 1 2 . Ballistic Cannon 31 | . 1 5 5 . . . 4 1 . 13 2 . . . . Launcher 19 | . . 2 1 1 2 . 2 . 1 1 3 1 2 1 2 Special Weapon 9 | . . . . . . . . . . 5 . 3 . 1 . Impact Weapon 18 | . . 1 1 . . . 3 . . 11 1 . 1 . . Slashing Weapon . | . . . . . . . . . . . . . . . . Piercing Weapon . | . . . . . . . . . . . . . . . . Special Melee Weapon 5 | . . . 1 . . . 1 . . 2 . . . 1 . Unidentified Prototypes 23 | . . 1 2 . 3 1 1 . . 2 1 . 1 11 . Corrupted Parts 2 | . 1 . . . . 1 . . . . . . . . . System Corruption 2 | . 1 . . . . 1 . . . . . . . . . Parts Lost 47 | . 2 1 5 . 7 1 10 4 2 2 1 2 . 10 . Power 7 | . . . . . 2 . 1 1 1 . . . . 2 . Propulsion 12 | . 2 . 3 . 1 . 3 . . 1 . 1 . 1 . Utility 15 | . . . 2 . 4 . 3 2 . . . 1 . 3 . Weapon 13 | . . 1 . . . 1 3 1 1 1 1 . . 4 . Highest Loss Streak 7 | . 2 1 2 . 6 1 6 4 2 1 1 1 . 7 . To Critical Strikes 3 | . . . . . 2 . 1 . . . . . . . . Average Slot Usage (%) 85 | . 94 99 99 100 98 100 82 86 90 80 84 77 75 76 75 Engine 3 | . 14 14 11 11 11 11 . . 6 . . . . . . Core 3 | . . . . . . . 3 6 . 5 7 6 7 6 . Wheel 15 | . 23 28 21 22 20 22 17 14 14 13 15 9 7 5 . Device 11 | . 14 5 8 . 7 11 9 8 15 13 7 14 14 12 23 Storage 8 | . 14 14 11 11 6 11 9 7 7 7 7 7 7 7 15 Processor 12 | . . . 21 11 . . 5 15 15 15 22 15 15 13 . Hackware 2 | . . . . . . . 7 21 15 4 . . . . . Protection 8 | . . 8 2 22 28 22 9 . . 5 7 7 7 9 7 Energy Gun 2 | . 22 . 3 . . . 2 2 6 . . . . 9 . Energy Cannon 1 | . . . 3 . . . . . . . 1 2 . 1 13 Ballistic Gun 5 | . 4 . 1 21 21 22 5 1 . 3 7 7 6 . . Ballistic Cannon 4 | . . 26 13 . . . 3 4 . 3 . . . . . Impact Weapon 1 | . . . . . . . 1 1 . 3 1 . 1 . . Naked Turns . | . . . . . . . . . . . . . . . . Heaviest Build 150 | 12 92 103 107 107 124 119 137 114 111 143 146 134 135 150 119 Greatest Support 84 | 26 32 32 32 24 28 28 40 38 38 40 40 40 28 84 60 Greatest Overweight (x) 37 | . 3 3 4 4 9 4 9 2 3 4 3 4 4 37 1 Average Overweight (x) 2 | . . 2 3 4 3 4 2 2 2 2 3 3 4 3 1 Largest Inventory Capacity 25 | 8 25 25 25 25 25 25 25 25 25 25 25 25 25 25 25 Average Capacity 24 | 7 14 25 25 25 17 25 25 25 25 25 25 25 25 25 25 Most Carried 25 | 2 15 20 25 23 25 25 25 25 20 25 25 25 25 25 23 Average Carried 21 | 1 7 17 20 22 14 23 23 23 20 24 24 24 24 23 21 Final Capacity 25 | 8 25 25 25 25 25 25 25 25 25 25 25 25 25 25 25 Final Carried 25 | 2 14 20 22 23 24 24 25 20 20 25 25 25 25 23 21 Class Distribution -------------------- 39% | Mutant 27% | Trapper-Mutant 11% | Hacker-Mutant 10% | Commander-Mutant 4% | Scavenger-Mutant 3% | Golem Dominant Class ---------------- Mutant | -10/Materials Commander-Mutant | -10/Mines Commander-Mutant | -9/Materials Mutant | -9/Mines Mutant | -9/Exiles Mutant | -8/Mines Mutant | -8/Materials Hacker-Mutant | -7/Factory Hacker-Mutant | -7/Waste Trapper-Mutant | -7/Factory Trapper-Mutant | -7/Lower Caves Trapper-Mutant | -7/Lower Caves Trapper-Mutant | -7/Zion Mutant | -7/Deep Caves Golem | -6/Proximity Caves Resources | -11 -10 -10 -9 -9 -9 -8 -8 -7 -7 -7 -7 -7 -7 -7 -6 ----------- Run | Scr Mat Min Mat Min Exi Min Mat Fac Was Fac Low Low Zio Dee Pro Matter Collected 7920 | 302 123 233 632 58 843 73 1312 271 . 2329 415 389 141 739 60 Remotely . | . . . . . . . . . . . . . . . . Salvage Created 8768 | 161 605 125 853 126 385 45 1545 190 . 2449 338 478 . 1247 221 Parts 498 | 15 35 10 57 15 40 3 107 14 . 111 13 25 . 45 8 Haulers Intercepted 14 | . 2 . 6 . . . 2 1 . 2 1 . . . . Recyclers Shooed 6 | . 1 . . . . . . . . 5 . . . . . Parts Field Recycled . | . . . . . . . . . . . . . . . . Retrieved Matter . | . . . . . . . . . . . . . . . . Parts Self-Destructed 47 | . . . . . . . . . . . 19 17 5 . 6 Prevented 2 | . . . . . . . . . . . 1 1 . . . Kills | -11 -10 -10 -9 -9 -9 -8 -8 -7 -7 -7 -7 -7 -7 -7 -6 ------- Run | Scr Mat Min Mat Min Exi Min Mat Fac Was Fac Low Low Zio Dee Pro Combat Hostiles Destroyed 171 | . 6 8 18 7 4 1 41 5 . 36 9 13 . 17 6 Melee 8 | . . . . . . . 4 . . 2 2 . . . . Guns 47 | . 6 1 3 3 2 1 7 . . 15 1 4 . 4 . Cannons 53 | . . . 15 . . . 17 4 . 12 1 1 . 3 . AOE 51 | . . 7 . 4 2 . 9 1 . 2 5 8 . 7 6 Classes Destroyed 27 | 2 6 . 2 . 3 1 3 1 . 3 1 2 . 3 . Worker 7 | . 1 . . . . . 2 . . 4 . . . . . Builder 4 | . . . . . . . 2 . . 2 . . . . . Tunneler 6 | 4 . . . 1 . . 1 . . . . . . . . Hauler 14 | . 2 . 6 . . . 2 1 . 2 1 . . . . Recycler 19 | 1 2 . 1 . . . 2 . . 13 . . . . . Minesweeper 1 | . . . . . . . . . . . . 1 . . . Mechanic 1 | . . . . . . . . . . . . 1 . . . Operator 5 | . 1 . 1 . . . 1 . . 2 . . . . . Turret 1 | . . . . . 1 . . . . . . . . . . Watcher 5 | . 3 . . . . . 1 . . 1 . . . . . Swarmer 50 | . 3 8 6 7 . . 14 . . 4 3 2 . . 3 Cutter 2 | . . . . . . . . . . 2 . . . . . Grunt 48 | . 3 . 2 1 . . 13 1 . 18 4 4 . . 2 Brawler 5 | . . . . . . . . . . 1 . 4 . . . Duelist 2 | . . . 1 . . . . . . 1 . . . . . Protector 1 | . . . . . . . . . . 1 . . . . . Sentry 25 | . . . 9 . . . 9 2 . 3 . 1 . . 1 Specialist 4 | . . . . . . . 4 . . . . . . . . Hunter 4 | . . . . . . 1 . 1 . 1 1 . . . . Programmer 7 | . . . . . . . . 1 . 6 . . . . . Heavy 1 | . . . . . . . 1 . . . . . . . . Zionite 1 | . . . . . 1 . . . . . . . . . . Z-Technician 5 | . . . . . . . . . . . . . . 5 . Z-Light 7 | . . . . . . . . . . . . . . 7 . Decomposer 1 | . . . . . . . . . . . . . . . 1 Thief 2 | . . . . . . . . . . . 1 1 . . . Master Thief 1 | . . . . . . . . . . . . 1 . . . Assembler 2 | . . . . . . . . . . . . . . 2 . Assembled 9 | . . . . . 3 . . . . . . . . 6 . Golem 3 | . . . . . . . . . . . . . . 3 . Best Kill Streak 10 | 5 3 3 8 5 3 1 9 1 . 10 7 9 . 4 5 Combat Bots Only 9 | . 3 3 8 4 3 1 7 1 . 9 7 9 . 4 5 Max Kills in Single Turn 4 | 1 2 3 1 2 1 1 3 1 . 2 2 4 . 1 4 Gunslinging 1 | . . . . 1 . . . . . . . . . . . Exploded 4 | . . 3 . 2 1 . 2 1 . 2 2 4 . 1 4 Melee 1 | . . . . . . . 1 . . 1 1 . . . . Uniques/NPCs Destroyed 6 | . . . . . 4 1 . . . . . . . 1 . 8R-AWN (-9/Exiles) EX-BIN (-9/Exiles) EX-HEX (-9/Exiles) EX-DEC (-9/Exiles) 12-ASH (-8/Mines) Z-Imprinter (-7/Deep Caves) Combat | -11 -10 -10 -9 -9 -9 -8 -8 -7 -7 -7 -7 -7 -7 -7 -6 -------- Run | Scr Mat Min Mat Min Exi Min Mat Fac Was Fac Low Low Zio Dee Pro Damage Taken 13427 | 2 375 92 816 39 1088 569 2817 615 91 2493 796 608 . 2879 147 Core 1717 | 2 144 16 206 . 90 71 476 130 . 220 78 26 . 243 15 Absorbed by Shields 496 | . . . . . . . 340 8 . 148 . . . . . Regen/Repaired (Parts) 2002 | . 35 . 239 . . . 477 97 . 489 . . 665 . . Core Remaining (%) 38 | 99 . 35 . . . 8 13 . . . . . . . . Volleys Fired 722 | 13 34 9 54 11 104 12 113 36 . 121 24 34 4 146 7 Largest 2 | 2 2 2 2 2 2 2 2 2 . 2 2 2 2 2 1 Hottest 120 | 60 80 80 101 50 50 50 88 110 . 96 88 88 118 120 30 Shots Fired 1100 | 26 68 15 107 17 168 24 154 37 . 193 38 57 6 183 7 Gun 634 | 26 68 3 8 12 155 24 84 4 . 88 16 28 2 116 . Cannon 342 | . . 8 99 . . . 57 33 . 90 14 17 3 18 3 Launcher 75 | . . 4 . 5 13 . 13 . . 1 8 5 . 22 4 Special 49 | . . . . . . . . . . 14 . 7 1 27 . Kinetic 708 | 22 20 8 94 12 155 24 116 35 . 167 25 28 2 . . Thermal 134 | . . . . . . . 25 . . 14 5 24 4 59 3 Explosive 75 | . . 4 . 5 13 . 13 . . 1 8 5 . 22 4 Electromagnetic 152 | 4 48 3 13 . . . . 2 . 11 . . . 71 . Phasic 31 | . . . . . . . . . . . . . . 31 . Robot Hit Streak 16 | 11 7 4 14 5 12 4 12 8 . 16 12 14 . 14 2 Robot Miss Streak 5 | 1 5 3 4 2 4 2 2 3 . 3 2 2 . 4 1 Penetration Max 1 | . . . . . . . 1 . . . . . . . . Secondary Targets 1 | . . . . 1 . . . . . . . . . . . Max Gunslinging Chain 1 | . . . . 1 . . . . . . . . . . . Autonomous 2 | . . . . . . . . . . 2 . . . . . Shots Hit Robots 803 | 19 39 10 73 7 108 14 144 21 . 170 27 42 . 125 4 Core Hits 431 | 10 19 7 29 9 33 4 58 7 . 66 17 39 . 119 14 Critical Kills 3 | . . . . . . . . . . 3 . . . . . Critical Parts Destroyed 16 | . 1 . . . . . 6 . . 8 1 . . . . Critical Strikes 41 | . 2 . 2 . . . 15 3 . 18 1 . . . . Burn 3 | . . . . . . . 3 . . . . . . . . Destroy 5 | . 1 . . . . . 1 . . 3 . . . . . Blast 17 | . . . 2 . . . 6 3 . 6 . . . . . Corrupt 1 | . 1 . . . . . . . . . . . . . . Smash 14 | . . . . . . . 5 . . 8 1 . . . . Sever 1 | . . . . . . . . . . 1 . . . . . Melee Attacks 132 | . . 3 4 . . . 38 1 . 83 2 . 1 . . Impact 126 | . . 3 1 . . . 38 1 . 80 2 . 1 . . Slashing . | . . . . . . . . . . . . . . . . Piercing . | . . . . . . . . . . . . . . . . Sneak Attacks 24 | . . . 3 . . . 3 . . 18 . . . . . Combat Hostiles 1 | . . . . . . . 1 . . . . . . . . Follow-up Attacks . | . . . . . . . . . . . . . . . . Damage Inflicted 26363 | 170 582 714 1610 480 2309 215 5410 1070 . 6011 1092 1830 . 4423 447 Guns 8159 | 166 540 36 141 140 1830 215 1191 36 . 1181 200 448 . 2035 . Cannons 7149 | . . 38 1458 . . . 2109 959 . 1547 295 344 . 323 76 Explosions 6435 | . 42 462 . 340 422 . 978 75 . 384 495 993 . 1873 371 Melee 4081 | . . 178 . . . . 1046 . . 2755 102 . . . . Ramming 189 | 4 . . 11 . 57 . 86 . . 31 . . . . . Kinetic 11021 | 126 80 38 1374 140 1830 215 2892 959 . 2540 379 448 . . . Thermal 3271 | . 42 55 . . . . 408 75 . 497 116 389 . 1613 76 Explosive 5118 | . . 407 . 340 422 . 978 . . . 495 993 . 1112 371 Electromagnetic 1957 | 40 460 36 225 . . . . 36 . 188 . . . 972 . Impact 4081 | . . 178 . . . . 1046 . . 2755 102 . . . . Slashing . | . . . . . . . . . . . . . . . . Piercing . | . . . . . . . . . . . . . . . . Phasic 726 | . . . . . . . . . . . . . . 726 . Highest Corruption 12 | . 1 1 . . . 1 2 . 12 12 7 7 7 . . Average Corruption 5 | . 1 1 . . . 1 2 . 7 6 7 7 7 . . Corruption Purged 10 | . . . . . . . . . . 10 . . . . . Corruption Blocked . | . . . . . . . . . . . . . . . . Effects 207 | . 3 10 . . . . 14 . 6 118 22 33 1 . . Message Errors 61 | . 1 1 . . . . 6 . 2 32 7 12 . . . Matter Fused 48 | . 2 4 . . . . 1 . 1 28 4 8 . . . Heat Flow Errors 26 | . . 1 . . . . . . . 18 3 3 1 . . Energy Discharges 25 | . . 1 . . . . 4 . 2 12 2 4 . . . Parts Rejected 2 | . . . . . . . . . . 1 1 . . . . Data Loss (minor) 20 | . . . . . . . 1 . 1 12 3 3 . . . Data Loss (major) 6 | . . . . . . . 1 . . 4 1 . . . . Misfires 6 | . . 1 . . . . . . . 4 . 1 . . . Alerts 9 | . . 2 . . . . 1 . . 4 1 1 . . . Weapon Failures 4 | . . . . . . . . . . 3 . 1 . . . Overload Shots 3 | . . . . . . . . . . . . . 3 . . Overflow Damage 2446 | . 32 197 36 16 37 . 585 64 . 1330 58 36 . 33 22 Projectiles 394 | . . 9 36 . . . 164 44 . 81 . 36 . 2 22 Explosions 320 | . 32 43 . 16 14 . 14 20 . 144 6 . . 31 . Melee 1732 | . . 145 . . 23 . 407 . . 1105 52 . . . . Knockbacks 66 | . . 3 10 . . . 11 2 . 37 3 . . . . Impact 17 | . . 1 . . . . 2 . . 14 . . . . . Kinetic 44 | . . 1 9 . . . 8 2 . 21 3 . . . . Secondary 5 | . . 1 1 . . . 1 . . 2 . . . . . Self-Inflicted Damage 631 | 2 39 18 5 14 72 . 86 46 . 180 131 38 . . . Shots 12 | . 1 1 . 1 1 . 1 1 . 2 3 1 . . . Rammed 23 | 1 . . 1 . 10 . 6 . . 5 . . . . . Targets Rammed 23 | 1 . . 1 . 10 . 6 . . 5 . . . . . Kicked . | . . . . . . . . . . . . . . . . Crushed . | . . . . . . . . . . . . . . . . Highest Temperature 544 | 20 228 211 108 47 255 . 285 80 . 544 252 348 192 438 . Average Temperature 72 | 15 62 63 23 21 48 . 53 24 . 102 64 116 67 110 . Received Heat Transfer 3403 | . 189 . 144 . . . 1022 162 . 842 324 99 . 609 12 Effects 20 | . . . . . 1 . . . . 13 . 1 . 5 . Shutdowns 2 | . . . . . . . . . . 1 . . . 1 . Energy Bleed 3 | . . . . . 1 . . . . 1 . 1 . . . Interference 13 | . . . . . . . . . . 10 . . . 3 . Matter Decay 1 | . . . . . . . . . . 1 . . . . . Damage (minor) 1 | . . . . . . . . . . . . . . 1 . Siege Activations . | . . . . . . . . . . . . . . . . Robots Corrupted 3 | . . . . . . . . . . . . . . 3 . Combat Hostiles 3 | . . . . . . . . . . . . . . 3 . Parts Fried 51 | . 2 . 1 . 10 . 10 . . 21 2 . . 5 . Impact Corruptions 90 | . . 10 . . 9 . 18 . . 51 2 . . . . Robots Melted . | . . . . . . . . . . . . . . . . Combat Hostiles . | . . . . . . . . . . . . . . . . Parts Melted 9 | . . . . . . . 5 . . . 1 . . 3 . Heat Transferred 5235 | . . 100 . . . . 1110 100 . 570 185 703 . 2417 50 Parts Sabotaged . | . . . . . . . . . . . . . . . . Parts Stolen 4 | . . . . . . . . . . . . 4 . . . Parts Stripped . | . . . . . . . . . . . . . . . . Power Chain Reactions 5 | . 1 1 . . . . . 1 . . . . . 2 . Missiles Intercepted . | . . . . . . . . . . . . . . . . Alert | -11 -10 -10 -9 -9 -9 -8 -8 -7 -7 -7 -7 -7 -7 -7 -6 ------- Run | Scr Mat Min Mat Min Exi Min Mat Fac Was Fac Low Low Zio Dee Pro Peak Influence 1268 | 25 170 288 405 402 . 30 799 404 53 1268 . . . . . Initial 324 | . 16 66 53 123 . . 5 324 38 23 . . . . . Average 263 | 10 99 131 243 253 . 13 401 308 41 290 . . . . . Maximum Alert Level 4 | . . 1 2 2 . . 3 2 . 4 . . . . . Low Security (%) 43 | 100 100 82 23 . . 100 26 4 100 48 . . . . . Level 1 36 | . . 17 75 84 . . 25 88 . 19 . . . . . Level 2 12 | . . . . 14 . . 24 7 . 21 . . . . . Level 3 6 | . . . . . . . 23 . . 6 . . . . . Level 4 . | . . . . . . . . . . 2 . . . . . Level 5 . | . . . . . . . . . . . . . . . . High Security . | . . . . . . . . . . . . . . . . Max Security . | . . . . . . . . . . . . . . . . Squads Dispatched 26 | . 1 . 1 1 . . 5 2 . 15 . 1 . . . Investigation 7 | . 1 . . . . . . 1 . 5 . . . . . Extermination 6 | . . . . . . . . . . 6 . . . . . Reinforcement 10 | . . . 1 1 . . 5 1 . 2 . . . . . Assault 3 | . . . . . . . . . . 2 . 1 . . . Garrison . | . . . . . . . . . . . . . . . . Intercept . | . . . . . . . . . . . . . . . . Searches Triggered . | . . . . . . . . . . . . . . . . Construction Impeded 2 | . . . . 1 . . . 1 . . . . . . . Haulers Reinforced . | . . . . . . . . . . . . . . . . Active Scanning Responses . | . . . . . . . . . . . . . . . . Cargo Convoy Interrupts 1 | . . . . . . . . . . 1 . . . . . Stealth | -11 -10 -10 -9 -9 -9 -8 -8 -7 -7 -7 -7 -7 -7 -7 -6 --------- Run | Scr Mat Min Mat Min Exi Min Mat Fac Was Fac Low Low Zio Dee Pro Distress Signals 5 | . . . 2 . . . 2 . . 1 . . . . . Communications Jammed 37 | . . . . . . . 31 1 . 5 . . . . . Distress Signals 21 | . . . . . . . 16 1 . 4 . . . . . Times Spotted 338 | . 12 7 43 8 42 4 66 8 6 70 12 20 . 31 9 Peak Tracking Total 12 | . 4 3 9 4 9 4 7 2 6 9 5 12 . 5 5 Tactical Retreats 39 | . . . 2 . 10 . 5 . . 8 . 3 . 11 . Traps | -11 -10 -10 -9 -9 -9 -8 -8 -7 -7 -7 -7 -7 -7 -7 -6 ------- Run | Scr Mat Min Mat Min Exi Min Mat Fac Was Fac Low Low Zio Dee Pro Traps Triggered 8 | . 1 . . . . . 1 3 . 3 . . . . . Indirectly . | . . . . . . . . . . . . . . . . Trap Hack Attempts 68 | . . . . . . . 5 . . 63 . . . . . Triggered . | . . . . . . . . . . . . . . . . Disarmed 1 | . . . . . . . 1 . . . . . . . . Reprogrammed 16 | . . . 6 . . . 1 . . 9 . . . . . Reused 9 | . . . . . . . . . . 1 . . . 8 . Traps Extracted 10 | . . . . . . . . . . 8 . . . 2 . Installed 10 | . . . . . . . . . . . . . . 10 . Triggered 3 | . . . . . . . . . . 2 . 1 . . . Most Traps Carried 12 | . . 3 3 . . . . . . 8 8 12 12 12 4 Exploded 3 | . . . . . 3 . . . . . . . . . . Machines | -11 -10 -10 -9 -9 -9 -8 -8 -7 -7 -7 -7 -7 -7 -7 -6 ---------- Run | Scr Mat Min Mat Min Exi Min Mat Fac Was Fac Low Low Zio Dee Pro Machines Disabled 37 | . 1 2 1 1 11 . 3 . . 11 2 1 3 1 . Max in Single Turn 5 | . 1 1 . . 3 . 1 . . 5 1 1 1 1 . Garrison Access 4 | . . . . . . . 1 2 . 1 . . . . . Machines Sabotaged . | . . . . . . . . . . . . . . . . Garrisons Compromised 1 | . . . . . . . . . . 1 . . . . . Overloaded Fab Kills 2 | . . . . . . . . . . 2 . . . . . Hacking | -11 -10 -10 -9 -9 -9 -8 -8 -7 -7 -7 -7 -7 -7 -7 -6 --------- Run | Scr Mat Min Mat Min Exi Min Mat Fac Was Fac Low Low Zio Dee Pro Machines Accessed 71 | . 9 1 14 1 1 . 14 13 . 17 1 . . . . Terminals 42 | . 8 . 10 1 . . 8 6 . 8 1 . . . . Fabricators 7 | . . . . . . . . 2 . 5 . . . . . Repair Stations 8 | . 1 . 2 . . . 2 1 . 2 . . . . . Recycling Units 2 | . . . . . . . 1 1 . . . . . . . Scanalyzers 6 | . . . 2 . . . 2 1 . 1 . . . . . Garrison Access 4 | . . . . . . . 1 2 . 1 . . . . . Total Hacks 223 | . 20 1 59 3 1 . 57 39 . 37 6 . . . . Successful 153 | . 14 1 41 2 1 . 39 30 . 19 6 . . . . Failed 70 | . 6 . 18 1 . . 18 9 . 18 . . . . . Catastrophic 11 | . 1 . 1 . . . 2 1 . 6 . . . . . Database Lockouts . | . . . . . . . . . . . . . . . . Manual 66 | . 15 . 26 2 . . 11 8 . 4 . . . . . Terminals 126 | . 18 . 41 3 . . 28 16 . 14 6 . . . . Fabricators 21 | . . . . . . . . 7 . 14 . . . . . Repair Stations 30 | . 2 . 9 . . . 12 2 . 5 . . . . . Recycling Units 4 | . . . . . . . 3 1 . . . . . . . Scanalyzers 34 | . . . 9 . . . 13 11 . 1 . . . . . Garrison Access 6 | . . . . . . . 1 2 . 3 . . . . . Terminal Hacks 64 | . 9 1 20 2 1 . 12 8 . 5 6 . . . . Record 7 | . . . . . 1 . . . . . 6 . . . . Part Schematic 3 | . 2 . 1 . . . . . . . . . . . . Robot Analysis 3 | . 2 . 1 . . . . . . . . . . . . Prototype ID Bank 9 | . 2 . 3 . . . 2 1 . 1 . . . . . Open Door 1 | . . 1 . . . . . . . . . . . . . Branch Access Points 4 | . 1 . 1 . . . . 1 . 1 . . . . . Machine Index 1 | . . . . . . . . 1 . . . . . . . Terminal Index 4 | . 1 . . . . . 1 1 . 1 . . . . . Repair Station Index 1 | . . . . . . . 1 . . . . . . . . Garrison Index 1 | . . . . . . . . 1 . . . . . . . Alert Level 4 | . . . . . . . 2 1 . 1 . . . . . Unreport Threat 3 | . . . 1 . . . 1 1 . . . . . . . Locate Traps 2 | . . . 2 . . . . . . . . . . . . Reprogram Traps 1 | . . . 1 . . . . . . . . . . . . Security Status 2 | . . . 2 . . . . . . . . . . . . Patrol Status 5 | . 1 . 2 1 . . 1 . . . . . . . . Garrison Status 1 | . . . 1 . . . . . . . . . . . . Hauler Manifests 5 | . . . 3 . . . 1 1 . . . . . . . Registered Components 3 | . . . 1 . . . 1 . . 1 . . . . . Zone Layout 4 | . . . 1 1 . . 2 . . . . . . . . Fabricator Hacks 13 | . . . . . . . . 5 . 8 . . . . . Network Status 2 | . . . . . . . . 1 . 1 . . . . . Load Schematic 8 | . . . . . . . . 3 . 5 . . . . . Build 3 | . . . . . . . . 1 . 2 . . . . . Repair Station Hacks 25 | . 2 . 8 . . . 9 2 . 4 . . . . . Scan Component 13 | . 1 . 4 . . . 5 1 . 2 . . . . . Repair 12 | . 1 . 4 . . . 4 1 . 2 . . . . . Recycling Unit Hacks . | . . . . . . . . . . . . . . . . Scanalyzer 31 | . . . 8 . . . 12 11 . . . . . . . Insert Component 17 | . . . 4 . . . 7 6 . . . . . . . Analyze 14 | . . . 4 . . . 5 5 . . . . . . . Garrison Access Hacks 3 | . . . . . . . 1 2 . . . . . . . Seal Access 3 | . . . . . . . 1 2 . . . . . . . Unauthorized Hacks 17 | . 3 . 5 . . . 5 2 . 2 . . . . . Terminals 11 | . 3 . 5 . . . 2 . . 1 . . . . . Assimilate 4 | . 2 . 1 . . . 1 . . . . . . . . Botnet 3 | . . . 3 . . . . . . . . . . . . Operators 4 | . 1 . 1 . . . 1 . . 1 . . . . . Fabricators 2 | . . . . . . . . 1 . 1 . . . . . Overload 1 | . . . . . . . . . . 1 . . . . . Recompile 1 | . . . . . . . . 1 . . . . . . . Repair Stations . | . . . . . . . . . . . . . . . . Recycling Units 4 | . . . . . . . 3 1 . . . . . . . Reject 1 | . . . . . . . 1 . . . . . . . . Recyclers 2 | . . . . . . . 1 1 . . . . . . . Mask 1 | . . . . . . . 1 . . . . . . . . Scanalyzers . | . . . . . . . . . . . . . . . . Garrison Access . | . . . . . . . . . . . . . . . . Data Cores Recovered 1 | . 1 . . . . . . . . . . . . . . Used . | . . . . . . . . . . . . . . . . Hacking Detections 50 | . 5 . 11 1 . . 11 7 . 14 1 . . . . Full Trace Events 6 | . . . . . . . 2 . . 4 . . . . . Feedback Events . | . . . . . . . . . . . . . . . . Feedback Blocked . | . . . . . . . . . . . . . . . . Robot Schematics Acquired 4 | . . . . . . . . . . . . . 4 . . Robots Built . | . . . . . . . . . . . . . . . . Authchips . | . . . . . . . . . . . . . . . . Time . | . . . . . . . . . . . . . . . . Total Robot Build Rating . | . . . . . . . . . . . . . . . . Part Schematics Acquired 30 | . 2 . 4 . . . 4 5 . . . . 15 . . Parts Built 4 | . . . . . . . . 1 . 3 . . . . . Authchips 1 | . . . . . . . . 1 . . . . . . . Time 221 | . . . . . . . . 84 . 137 . . . . . Total Part Build Rating 18 | . . . . . . . . 4 . 14 . . . . . Parts Repaired 12 | . 1 . 4 . . . 4 1 . 2 . . . . . Time 570 | . 26 . 244 . . . 204 22 . 74 . . . . . Parts Recycled . | . . . . . . . . . . . . . . . . Recycled Matter . | . . . . . . . . . . . . . . . . Retrieved Matter . | . . . . . . . . . . . . . . . . Retrieved Components . | . . . . . . . . . . . . . . . . Parts Scanalyzed 12 | . . . 3 . . . 4 5 . . . . . . . Part Schematics Acquired 12 | . . . 3 . . . 4 5 . . . . . . . Parts Damaged 4 | . . . 2 . . . 2 . . . . . . . . Bothacking | -11 -10 -10 -9 -9 -9 -8 -8 -7 -7 -7 -7 -7 -7 -7 -6 ------------ Run | Scr Mat Min Mat Min Exi Min Mat Fac Was Fac Low Low Zio Dee Pro Used RIF Installer . | . . . . . . . . . . . . . . . . Robots Hacked 3 | . . . 2 . . . . . . 1 . . . . . Non-combat 3 | . . . 2 . . . . . . 1 . . . . . Combat . | . . . . . . . . . . . . . . . . Robot Hacks Applied 4 | . . . 3 . . . . . . 1 . . . . . no_distress 1 | . . . 1 . . . . . . . . . . . . find_recycling 2 | . . . 1 . . . . . . 1 . . . . . find_station 1 | . . . 1 . . . . . . . . . . . . Relay Couplers Released . | . . . . . . . . . . . . . . . . Fabnet Peak Effective % . | . . . . . . . . . . . . . . . . Robots Rewired 2 | . . . . . . . . . . . . 2 . . . Allies Hacked . | . . . . . . . . . . . . . . . . Hacks Repelled . | . . . . . . . . . . . . . . . . Allies | -11 -10 -10 -9 -9 -9 -8 -8 -7 -7 -7 -7 -7 -7 -7 -6 -------- Run | Scr Mat Min Mat Min Exi Min Mat Fac Was Fac Low Low Zio Dee Pro Total Allies 11 | . 1 5 1 . . . . . . 2 . 2 . . . Largest Group 6 | . 1 6 6 4 2 1 . . . 1 . 2 1 1 . Highest-Rated Group 93 | . 10 93 93 51 19 9 . . . 25 . 32 11 11 . Highest-Rated Ally 31 | . 10 31 31 16 10 9 . . . 25 . 16 11 11 . Total Orders 27 | . . 1 11 7 2 . 4 . . 1 . . 1 . . STAY 10 | . . . 5 4 1 . . . . . . . . . . FOLLOW 9 | . . . 5 3 1 . . . . . . . . . . RETURN 8 | . . 1 1 . . . 4 . . 1 . . 1 . . Ally Attacks 150 | . . . 93 12 . 11 8 . . 11 . 15 . . . Total Damage 1998 | . . . 1002 79 . 582 26 . . 96 . 213 . . . Kills 17 | . . . 14 1 . 1 . . . 1 . . . . . Allies Corrupted . | . . . . . . . . . . . . . . . . Allies Melted . | . . . . . . . . . . . . . . . . Turrets Deployed 1 | . . . . . . 1 . . . . . . . . . Fabricated Assembled 1 | . . . . . . . . . . . . . . 1 . Intel | -11 -10 -10 -9 -9 -9 -8 -8 -7 -7 -7 -7 -7 -7 -7 -6 ------- Run | Scr Mat Min Mat Min Exi Min Mat Fac Was Fac Low Low Zio Dee Pro Robot Analysis Total 3 | . 2 . 1 . . . . . . . . . . . . Derelict Logs Recovered 5 | . . 2 . 1 . . . . . . 1 1 . . . Drone Launches 27 | . . 1 3 . . . 10 . . 12 . . 1 . . Drone Recoveries 26 | . . 1 3 . . . 10 . . 11 . . 1 . . Exploration | -11 -10 -10 -9 -9 -9 -8 -8 -7 -7 -7 -7 -7 -7 -7 -6 ------------- Run | Scr Mat Min Mat Min Exi Min Mat Fac Was Fac Low Low Zio Dee Pro Turns Passed 21517 | 104 749 844 2652 510 1471 608 2467 949 163 4459 760 1068 1623 2751 339 Spaces Moved 11400 | 59 476 561 1446 306 786 356 1226 602 91 2095 466 584 979 1274 93 Core 4 | 1 1 . . . . . . . . . . . . 2 . Treads . | . . . . . . . . . . . . . . . . Legs 288 | . . . . . . . . . . . . . . 195 93 Wheels 11108 | 58 475 561 1446 306 786 356 1226 602 91 2095 466 584 979 1077 . Hover . | . . . . . . . . . . . . . . . . Flight . | . . . . . . . . . . . . . . . . Fastest Speed 50 | 50 90 130 130 150 105 155 120 120 120 120 140 125 160 145 180 Average Speed 142 | 89 108 138 141 150 137 155 128 120 122 137 140 153 160 169 180 Slowest Speed 1900 | 100 200 145 150 150 225 155 225 120 145 160 140 160 160 1900 180 Overloaded Moves . | . . . . . . . . . . . . . . . . Propulsion Burnouts . | . . . . . . . . . . . . . . . . Robots Hopped 2 | . . . . . . 2 . . . . . . . . . Cave-ins Triggered . | . . . . . . . . . . . . . . . . Exploration Rate (%) 66 | 4 96 97 90 62 76 87 93 22 78 42 64 71 81 83 23 Regions Visited 15 Branch Regions 9 Pre-discovered Areas 7 | . . 1 . 2 1 . . . . . . 1 2 . . Known Exits Taken 10 | . 1 1 1 1 . 1 . . . 1 1 1 1 1 . Unknown Exits Taken 3 | 1 . . . . 1 . 1 . . . . . . . . Scrap Searched 9 | . . 1 . 2 . 1 . . . . 2 2 1 . . Spaces Dug 87 | . . . 1 27 . . 7 9 . 31 9 . . 3 . Terrain Destroyed 481 | . 7 46 3 34 24 . 67 22 . 81 77 18 . 85 17 Melee 30 | . . . 1 . . . 2 . . 27 . . . . . Projectile 59 | . . . 2 . 3 . 13 15 . 15 1 . . 9 1 AOE 392 | . 7 46 . 34 21 . 52 7 . 39 76 18 . 76 16 Terrain Rammed . | . . . . . . . . . . . . . . . . Walls Destroyed . | . . . . . . . . . . . . . . . . Machines Disabled . | . . . . . . . . . . . . . . . . Actions | -11 -10 -10 -9 -9 -9 -8 -8 -7 -7 -7 -7 -7 -7 -7 -6 --------- Run | Scr Mat Min Mat Min Exi Min Mat Fac Was Fac Low Low Zio Dee Pro Total 15352 | 83 647 607 1936 341 1041 392 1888 773 142 3328 526 687 1029 1675 257 Wait 2205 | . 94 14 358 22 39 20 374 102 51 807 11 23 16 121 153 Move 11383 | 59 475 560 1445 305 785 351 1225 602 90 2094 465 583 978 1273 93 Hop 2 | . . . . . . 2 . . . . . . . . . Pick Up 212 | 2 20 6 27 1 54 3 34 6 . 28 3 6 5 17 . Fast Attach 66 | 7 4 1 3 . 2 . 11 1 . 11 3 1 3 19 . Attach 100 | . . 3 9 . 8 1 21 10 . 20 2 4 6 15 1 Detach 51 | . 1 3 3 . 1 . 13 2 . 8 . . 4 15 1 Swap 185 | 2 6 8 16 2 10 1 19 10 1 61 12 12 4 19 2 Drop 161 | . 13 . 16 . 28 2 29 3 . 19 4 3 8 36 . Fire 722 | 13 34 9 54 11 104 12 113 36 . 121 24 34 4 146 7 Melee 132 | . . 3 4 . . . 38 1 . 83 2 . 1 . . Ram 22 | . . . 1 . 10 . 6 . . 5 . . . . . Kick . | . . . . . . . . . . . . . . . . Crush . | . . . . . . . . . . . . . . . . Escape Stasis 8 | . . . . . . . . . . 8 . . . . . Rewire 25 | . . . . . . . . . . . . 21 . 4 . Trap 78 | . . . . . . . 5 . . 63 . . . 10 . Miscellaneous . | . . . . . . . . . . . . . . . . Route ------- -11/Scrapyard -10/Materials (discovered 5 exits: *Mat x3 / *Min x2) -10/Mines (discovered 2 exits: *Mat x2) -9/Materials (discovered 6 exits: *Mat x3 / *Min / *Sto x2) -9/Mines (discovered 3 exits: Mat / *Exi / *Zio) -9/Exiles -8/Mines -8/Materials (discovered 2 exits: *Fac x2) -7/Factory (discovered 3 exits: *Fac / Low x2) -7/Waste -7/Factory (discovered 2 exits: *Low x2) -7/Lower Caves -7/Lower Caves (discovered 2 exits: *Fac / *Zio) -7/Zion (discovered 2 exits: *Dee / [*Pro]) -7/Deep Caves -6/Proximity Caves History --------- Turn | Location | Event 11 | -11/Scrapyard | Discovered new exit (range 16) 105 | -11/Scrapyard | Entered Materials 110 | -10/Materials | Identified exit to Mines 229 | -10/Materials | Core integrity fell below 50% 278 | -10/Materials | Repaired EM Pulse Gun 318 | -10/Materials | Build established: Mutant 389 | -10/Materials | Discovered new exit (range 11) 548 | -10/Materials | Discovered new exit (range 9) 662 | -10/Materials | Discovered new exit (range 3) 854 | -10/Materials | Entered Mines 854 | -10/Mines | Accompanied by 1 ally 974 | -10/Mines | Identified exit to Materials 1021 | -10/Mines | Found a damaged Exp. Sensor Array with a note attached 1024 | -10/Mines | Found Prototype Device 1068 | -10/Mines | Assisted by bots powering up and referring to "LRC-V3" 1253 | -10/Mines | Found a hidden stash of uninstalled traps 1337 | -10/Mines | Found the Drone Emporium 1345 | -10/Mines | Found Prototype Device 1345 | -10/Mines | Identified Splice Drone Bay 1378 | -10/Mines | Build established: Commander-Mutant 1404 | -10/Mines | Discovered exit to Materials (range 10) 1410 | -10/Mines | Received a Rocket Launcher from a helpful Derelict 1489 | -10/Mines | Learned location of Mines (-9) 1698 | -10/Mines | Entered Materials 1698 | -9/Materials | Accompanied by 6 allies 1698 | -9/Materials | Evolved 2 slots: Utility x2 1699 | -9/Materials | Identified Exp. Sensor Array 1703 | -9/Materials | Led the pair of lost Derelicts to an unsafe place 1993 | -9/Materials | Build established: Scavenger-Mutant 2058 | -9/Materials | Discovered new exit (range 16) 2084 | -9/Materials | Identified exit to Materials 2544 | -9/Materials | Discovered exit to Materials (range 16) 2545 | -9/Materials | Destroyed 8 combat bots 2650 | -9/Materials | Repaired Broken Mni. Grenade Launcher 2683 | -9/Materials | Repaired Imp. Light Cannon 2717 | -9/Materials | Repaired Imp. Light Cannon 3078 | -9/Materials | Build established: Commander-Mutant 3660 | -9/Materials | Repaired Broken Exp. Sensor Array 3835 | -9/Materials | Discovered new exit (range 8) 3953 | -9/Materials | Discovered new exit (range 16) 3974 | -9/Materials | Identified exit to Storage 4042 | -9/Materials | Discovered exit to Storage (range 5) 4043 | -9/Materials | Core integrity fell below 50% 4144 | -9/Materials | Discovered exit to Materials (range 6) 4213 | -9/Materials | Identified exit to Mines 4350 | -9/Materials | Entered Mines 4350 | -9/Mines | Accompanied by 4 allies 4409 | -9/Mines | Learned location of Storage (-9) 4482 | -9/Mines | Discovered exit to Materials (range 6) 4523 | -9/Mines | Assembled infested the area 4666 | -9/Mines | A Derelict revealed a hidden shortcut to a safe place 4672 | -9/Mines | Build established: Mutant 4711 | -9/Mines | Deemed a non-threat by the Exiles lab entrance 4712 | -9/Mines | Discovered new exit (range 5) 4738 | -9/Mines | Identified exit to Exiles 4860 | -9/Mines | Entered Exiles 4860 | -9/Exiles | Accompanied by 2 allies 4902 | -9/Exiles | Met 8R-AWN 4926 | -9/Exiles | Met EX-HEX 4983 | -9/Exiles | Met EX-DEC 4994 | -9/Exiles | Learned location of Zion (-7) 5036 | -9/Exiles | Discovered new exit (range 14) 5418 | -9/Exiles | Attacked by the Exiles 5641 | -9/Exiles | Destroyed 8R-AWN 5647 | -9/Exiles | Found Prototype Device 5660 | -9/Exiles | Lost 6 parts (1p1n4u) 6021 | -9/Exiles | Destroyed EX-BIN 6055 | -9/Exiles | Destroyed EX-HEX 6109 | -9/Exiles | Destroyed EX-DEC 6147 | -9/Exiles | Found Prototype Energy Gun 6152 | -9/Exiles | Found Deploy-a-Sentry 6200 | -9/Exiles | Identified AS-neutralizer No. 17b 6331 | -9/Exiles | Left Exiles lab with Deploy-a-Sentry 6331 | -9/Exiles | Entered Mines 6331 | -8/Mines | Accompanied by 2 allies 6411 | -8/Mines | 12-ASH came to Exiles' defense 6417 | -8/Mines | Core integrity fell below 20% 6423 | -8/Mines | DAS Turret deployed 6442 | -8/Mines | Allies destroyed 12-ASH 6933 | -8/Mines | Discovered exit to Materials (range 4) 6939 | -8/Mines | Entered Materials 6939 | -8/Materials | Evolved 2 slots: Propulsion x1, Utility x1 7351 | -8/Materials | Identified AWS/EX-DEC 7406 | -8/Materials | Build established: Scavenger-Mutant 7610 | -8/Materials | Discovered new exit (range 15) 7795 | -8/Materials | Build established: Mutant 8229 | -8/Materials | Destroyed 7 combat bots 8426 | -8/Materials | Lost 6 parts (1p1n2u2w) 8530 | -8/Materials | Core integrity fell below 50% 8833 | -8/Materials | Core integrity fell below 20% 8957 | -8/Materials | Discovered new exit (range 14) 9175 | -8/Materials | Repaired Arm. Huge Wheel 9243 | -8/Materials | Repaired Broken Arm. Huge Wheel 9305 | -8/Materials | Repaired Broken Rnf. Deuterium Engine 9344 | -8/Materials | Repaired Hvy. Armor Plating 9406 | -8/Materials | Entered Factory 9406 | -7/Factory | Evolved 2 slots: Utility x2 9428 | -7/Factory | Build established: Hacker-Mutant 9642 | -7/Factory | Identified exit to Lower Caves 9971 | -7/Factory | Fabricated Hrd. Heavy Armor Plating (x1) 10022 | -7/Factory | Discovered new exit (range 11) 10251 | -7/Factory | Lost 4 parts (1p2u1w) 10262 | -7/Factory | Repaired Arm. Huge Wheel 10355 | -7/Factory | Sucked down chute 10355 | -7/Factory | Entered Waste 10370 | -7/Waste | EMP discharged 10439 | -7/Waste | Spotted C-40 Crusher 10457 | -7/Waste | Spotted C-40 Crusher 10460 | -7/Waste | Spotted C-40 Crusher 10462 | -7/Waste | Spotted C-40 Crusher 10470 | -7/Waste | EMP discharged 10470 | -7/Waste | System corruption reached 10% 10484 | -7/Waste | Spotted C-40 Crusher 10490 | -7/Waste | Spotted C-40 Crusher 10501 | -7/Waste | Crushed by Compactor (1 part destroyed, 1 dropped) 10504 | -7/Waste | Crushed by Compactor (1 part destroyed, 1 dropped) 10505 | -7/Waste | Discovered new exit (range 10) 10517 | -7/Waste | Identified exit to Factory 10518 | -7/Waste | Entered Factory 10642 | -7/Factory | Fabricated Rnf. Fission Core? 11822 | -7/Factory | Repaired Enh. Autogun 11934 | -7/Factory | Build established: Mutant 11940 | -7/Factory | Cargo convoy interrupted 13109 | -7/Factory | Repaired Hrd. Heavy Armor Plating 13544 | -7/Factory | Fabricated Mni. Grenade Launcher? 13560 | -7/Factory | Build established: Trapper-Mutant 14518 | -7/Factory | First assault squad dispatched 14891 | -7/Factory | Destroyed 9 combat bots 14977 | -7/Factory | Entered Lower Caves 15150 | -7/Lower Caves | Core integrity fell below 50% 15157 | -7/Lower Caves | Attracted the attention of an 0b10 base 15204 | -7/Lower Caves | Destroyed 7 combat bots 15228 | -7/Lower Caves | Identified exit to Lower Caves 15228 | -7/Lower Caves | Learned Research security intel 15228 | -7/Lower Caves | Learned Extension security intel 15228 | -7/Lower Caves | Learned Armory security intel 15545 | -7/Lower Caves | Encountered a Warlord checkpoint 15601 | -7/Lower Caves | Learned Factory interactive machine intel 15737 | -7/Lower Caves | Entered another Lower Caves area 15737 | -7/Lower Caves | Spotted ZR-TMQ(f) 15737 | -7/Lower Caves | Spotted BP-P96(f) 15738 | -7/Lower Caves | Encountered a Master Thief 15738 | -7/Lower Caves | Encountered a Master Thief 15739 | -7/Lower Caves | Spotted FJ-S9Q(f) 15740 | -7/Lower Caves | Encountered a Master Thief 15750 | -7/Lower Caves | Adv. Force Field stolen by Master Thief 15762 | -7/Lower Caves | Rnf. Fission Core stolen by Master Thief 15768 | -7/Lower Caves | Rnf. Fission Core stolen by Master Thief 15775 | -7/Lower Caves | Destroyed ZR-TMQ(f) 15807 | -7/Lower Caves | Discovered new exit (range 9) 15836 | -7/Lower Caves | Identified exit to Factory 16023 | -7/Lower Caves | Attracted the attention of an 0b10 outpost 16124 | -7/Lower Caves | Destroyed 9 combat bots 16217 | -7/Lower Caves | Discovered new exit (range 15) 16762 | -7/Lower Caves | Identified exit to Zion 16805 | -7/Lower Caves | Entered Zion 16805 | -7/Zion | Accompanied by 1 ally 16870 | -7/Zion | System corruption cleaned by Quarantine Array 16979 | -7/Zion | Discovered new exit (range 15) 17065 | -7/Zion | Found CR-A16's Pointy Stick 17194 | -7/Zion | Learned location of Quarantine (-2) 17598 | -7/Zion | Given the Hacking Drone Bay 17615 | -7/Zion | Found Prototype Device 17708 | -7/Zion | Received a hallucinogenic algorithm 17789 | -7/Zion | Discovered new exit (range 4) 17789 | -7/Zion | Saw the warning signs outside the Deep Caves entrance 18298 | -7/Zion | Found Prototype Device 18298 | -7/Zion | Identified Mobile Refinery Mk. CCLXVII 18426 | -7/Zion | Identified exit to Deep Caves 18428 | -7/Zion | Entered Deep Caves 18428 | -7/Deep Caves | Accompanied by 1 ally 18626 | -7/Deep Caves | Attacked by Z-Imprinter 18634 | -7/Deep Caves | Destroyed Z-Imprinter 19139 | -7/Deep Caves | Found Prototype Protection 19139 | -7/Deep Caves | Identified Zio. Heavy Carapace 19403 | -7/Deep Caves | Spotted as-10793 19429 | -7/Deep Caves | Core integrity fell below 20% 19434 | -7/Deep Caves | Destroyed as-10793 19495 | -7/Deep Caves | Triggered Deep Caves wall 19510 | -7/Deep Caves | Spotted AS-80249 19513 | -7/Deep Caves | Spotted AS-90646 19538 | -7/Deep Caves | Destroyed AS-90646 19544 | -7/Deep Caves | Destroyed AS-80249 19625 | -7/Deep Caves | Build established: Mutant 19693 | -7/Deep Caves | Identified Hacking Drone Bay 19726 | -7/Deep Caves | Spotted as-44825 19748 | -7/Deep Caves | Destroyed as-44825 19988 | -7/Deep Caves | Discovered new exit (range 7) 20120 | -7/Deep Caves | Found Prototype Protection 20120 | -7/Deep Caves | Identified Zio. Weapon Casing 20402 | -7/Deep Caves | Found Prototype Device 20402 | -7/Deep Caves | Identified PSU Rigger 20480 | -7/Deep Caves | Found Mobile Assembly Unit 20533 | -7/Deep Caves | Exposed GOLEM chamber 20558 | -7/Deep Caves | Found GOLEM Unit 20698 | -7/Deep Caves | Found GOLEM Unit 20905 | -7/Deep Caves | Identified exit to Proximity Caves 20972 | -7/Deep Caves | Spotted as-83699 21020 | -7/Deep Caves | Build established: Golem 21122 | -7/Deep Caves | Spotted as-27223 21148 | -7/Deep Caves | Lost 7 parts (2p2u3w) 21179 | -7/Deep Caves | Entered Proximity Caves 21183 | -6/Proximity Caves | Attracted the attention of an 0b10 checkpoint 21518 | -6/Proximity Caves | Destroyed by S-27 Virus with Autogun Last Messages --------------- 21189_ Carbon-fiber Leg fries itself beyond repair. 21189_ The unstable cave ceiling collapses. 21190_ Discarded Asb. Nanovents. 21193_ Autogun fries itself beyond repair. 21193_ Acquired 20 matter. 21196_ Imp. Heat Sink fries itself beyond repair. 21197_ Acquired 40 matter. 21198_ Imp. Deuterium Engine fries itself beyond repair. 21202_ Unknown Treads fries itself beyond repair. 21215_ The unstable cave ceiling collapses. 21219_ Asb. Focal Cannon integration complete. 21221_ GOLEM Unit beginning Asb. Focal Cannon integration. 21224_ The unstable cave ceiling collapses. 21272_ Asb. Focal Cannon integration complete. 21272_ SO-NPG(k) breaks down the debris. 21277_ Destroyed Wheel. 21279_ SO-NPG(k) destroyed. 21309_ AY-KTL(k) breaks down the debris. 21513_ Discarded Asb. Focal Cannon. 21516_ S-27 Virus destroyed. Map ----- +----------------------------------------------------+ | ?????????????????????????????????????????????????? | | ?????????????????????????????????????????????????? | | ?????????????????????????????????????????????????? | | ?????????????????????????????????????????????????? | | ?????????????????????????????????????????????????? | | ?????????????????????????????????????????????????? | | ?????????????????????????????????????????????????? | | ????????????????????????#????????????????????????? | | ???????????????????????# ???????????????????????? | | ???????????????????????# ???????????????????????? | | ???????????????????????# ???????????????????????? | | ???????????????????????# ????###????????????????? | | ?????????????????####??# ???? ?????????????????? | | ???????????????## #??# #### ?????????????????? | | ???????????##### #??? ## ??????????????????? | | ??????????## #????# ??????????????????? | | ??????##### ####????# #??????????????????? | | ??????# ! ##???????# ##?????????????????? | | ??????# % ##????????# ##????????????????? | | ??????## ####??????# #????????????????? | | #??????# ## ##??#### #????????????????? | | #####?# ## #?## #?????????????????? | | #?## ### #?????????????????? | | #### ### #?????????????????? | | ?# #####?????????????????? | | ## @ #????????????????????? | | # ## ### ## ##????????????????????? | | ## #?# ### ##?????????????????????? | | ## #?# #?#### #??????????????????????? | | ## #?## #????# #??????????????????????? | | # #??## #??# #??????????????????????? | | ## #? #####??# ?????????????????????? | | ?# ## ##???# ???????????????????? | | ?# ##??# * ss ??????????????????? | | ### ##?## % ## ????????????????? | | ### ##?## "#??##???????????????? | | ## #??## s ###???????????????????? | | ## #???### ##?????????????????????? | | ##?????% ##??????????????????????? | | #??? % #???????????????????????? | | #### #??##% ???????????????????????? | | ##???# #### #???# ???????????????????????? | | # #????## #????????# ???????????????????????? | | ###??????# ##????????# ????????????????????????? | | ??????????##??????????? ????????????????????????? | | ?????????????????????????????????????????????????? | | ?????????????????????????????????????????????????? | | ?????????????????????????????????????????????????? | | ?????????????????????????????????????????????????? | | ?????????????????????????????????????????????????? | +----------------------------------------------------+ Best States ------------- Heat Dissipation 64 Energy Generation 19 Energy Capacity 1310 Matter Stores 300 Matter Capacity 300 Sight Range 16 Robot Scan Range 20 Terrain Scan Density 10 Jamming Range 16 Armor Coverage 1600 Resistance: KI 20 Resistance: TH 15 Resistance: EX 15 Resistance: EM 15 Resistance: I 15 Resistance: S 15 Resistance: P 15 Weapon Cycling 15 Evasion (%) 42 Launcher Accuracy 40 Core Analysis 6 Energy Filtering 50 Salvage Targeting 2 Offensive Hacking 20 Defensive Hacking 10 Authchip Count 1 Trap Extractor Capacity 10 Item Schematics ----------------- Transport Network Coupler | -10/Materials | Hacked Huge Storage Unit | -10/Materials | Hacked Arm. Wheel | -9/Materials | Scanalyzed Mni. Grenade Launcher | -9/Materials | Scanalyzed Exp. Sensor Array | -9/Materials | Scanalyzed Plasma Cutter | -9/Materials | Hacked Adv. Launcher Guidance Computer | -8/Materials | Scanalyzed Rnf. Fission Core | -8/Materials | Scanalyzed Arm. Huge Wheel | -8/Materials | Scanalyzed Adv. Transmission Jammer | -8/Materials | Scanalyzed Hrd. Heavy Armor Plating | -7/Factory | Scanalyzed Weapon Cycler | -7/Factory | Scanalyzed Prc. Shock Rifle | -7/Factory | Scanalyzed Imp. Cooling System | -7/Factory | Scanalyzed Core Analyzer | -7/Factory | Scanalyzed Imp. Field Recycling Unit | -7/Zion | Archive Hpw. Shock Rifle | -7/Zion | Archive Med. Treads | -7/Zion | Archive Imp. Trap Scanner | -7/Zion | Archive Mak. Terrain Scan Processor | -7/Zion | Archive Imp. Corruption Screen | -7/Zion | Archive Mapping Drone Bay | -7/Zion | Archive Hvy. Rocket Launcher | -7/Zion | Archive Adv. Signal Interpreter | -7/Zion | Archive Gauss Rifle | -7/Zion | Archive Thermal Shield | -7/Zion | Archive Adv. Heat Sink | -7/Zion | Archive Imp. Carbon-fiber Leg | -7/Zion | Archive Mak. Hammer | -7/Zion | Archive Magnetic Acceleration Cannon | -7/Zion | Archive Robot Schematics ------------------ B-48 Gladiator | -7/Zion | Archive S-27 Virus | -7/Zion | Archive L-41 Fighter | -7/Zion | Archive L-61 Swordsman | -7/Zion | Archive Fabricated ------------ Hrd. Heavy Armor Plating | x1 | -7/Factory | Authchip Rnf. Fission Core | x2 | -7/Factory Mni. Grenade Launcher | x1 | -7/Factory Alien Tech Used ----------------- None Achievements -------------- None Challenges ------------ None Game ------ Seed SalvageRagnarokRifle Manual? 0 Play Time 04:41:18 Cumulative 128.0 hours Start 2023.01.17 @ 22:29:37 End 2023.01.20 @ 19:10:11 Sessions 5 Manual Loads 0 Difficulty Rogue Special Mode None Game No. 39 Rogue 39 Adventurer 0 Explorer 0 Win Type - Total 1 Types 1/0/0/0/0/0/0/0/0 Lore% 65 Gallery% 68 Achievement% 56 Wizard Run 0 Options --------- ASCII 0 Keyboard 1 Movement Numpad Keybinds 0 Fullscreen 2 Font 12/Smallcaps Map View 83x54 Tactical HUD 1 Map Filters NONE Filters NONE Steam 0 RUN: 88de3263-eede-45a7-a2b7-c32edd3184da